Cogmind - Beta 11.2 *** ADVENTURER MODE // 2022.12.27 @ 15:48:05 // Winter2022/Polymind Player: W3rd2 Result: Destroyed by Y-45 Defender with Heavy Assault Rifle Performance ------------- Evolutions (2) 1000 Regions Visited (4) 800 Robots Destroyed (1) 5 Value Destroyed (1) 1 Prototype IDs (4) 80 Alien Tech Used (0) 0 Bonus (2010) 2010 TOTAL SCORE: 3526 Bonus ------- Polymind Skill 1540 Pacifist 470 Cogmind --------- Core Integrity 0/550 Matter 0/0 Energy 175/175 System Corruption 4% Temperature Cool (27) Movement Treading (160) Location -8/Storage Parts ------- > --- POWER (1) -------- Ion Engine > --- PROPULSION (2) --- Light Treads Light Treads > --- UTILITY (3) ------ Medium Storage Unit Weight Redist. System Transport Network Coupler > --- WEAPON (0) ------- (None) > --- INVENTORY (6) ---- Faulty Heavy Ion Engine Faulty Heavy Ion Engine Precision Beam Rifle Precision Beam Rifle Peak State ------------ > --- POWER ------------ Light Ion Engine > --- PROPULSION ------- Wheel Wheel > --- UTILITY ---------- Structural Scanner Terrain Scanner Terrain Scan Processor > --- WEAPON ----------- Welding Torch > --- INVENTORY -------- (None) [Rating: 8] Favorites ----------- Power Light Ion Engine Engine Light Ion Engine Propulsion Wheel Treads Light Treads Wheel Wheel Flight Unit Flight Unit Utility Terrain Scan Processor Device Structural Scanner Storage Medium Storage Unit Processor Terrain Scan Processor Weapon Welding Torch Ballistic Gun Light Assault Rifle Special Weapon Welding Torch Build | -11 -10 -9 -8 -8 ------- Run | Scr Mat Mat Mat Sto Slots Evolved . | . . . . . Power . | . . . . . Propulsion . | . . . . . Utility . | . . . . . Weapon . | . . . . . Parts Attached . | . . . . . Power . | . . . . . Engine . | . . . . . Core . | . . . . . Reactor . | . . . . . Propulsion . | . . . . . Treads . | . . . . . Leg . | . . . . . Wheel . | . . . . . Hover . | . . . . . Flight . | . . . . . Utility . | . . . . . Device . | . . . . . Storage . | . . . . . Processor . | . . . . . Hackware . | . . . . . Protection . | . . . . . Artifact . | . . . . . Weapon . | . . . . . Energy Gun . | . . . . . Energy Cannon . | . . . . . Ballistic Gun . | . . . . . Ballistic Cannon . | . . . . . Launcher . | . . . . . Special Weapon . | . . . . . Impact Weapon . | . . . . . Slashing Weapon . | . . . . . Piercing Weapon . | . . . . . Special Melee Weapon . | . . . . . Unidentified Prototypes . | . . . . . Parts Lost 11 | . . 5 1 5 Power 2 | . . 1 . 1 Propulsion 4 | . . 2 . 2 Utility 3 | . . 1 1 1 Weapon 2 | . . 1 . 1 Highest Loss Streak 5 | . . 5 1 5 To Critical Strikes . | . . . . . Average Slot Usage (%) 49 | . 78 75 26 29 Engine 5 | . 11 9 . 3 Treads 1 | . . . . 4 Wheel 8 | . 22 17 . . Device 14 | . 22 23 12 2 Processor 12 | . 11 14 14 9 Ballistic Gun 1 | . . . . 6 Special Weapon 4 | . 11 9 . . Naked Turns 41 | . 28 . . 13 Heaviest Build 15 | . 6 6 1 15 Greatest Support 46 | 3 20 20 3 46 Greatest Overweight (x) 1 | . . . . 1 Average Overweight (x) . | . . . . . Largest Inventory Capacity 6 | . . . . 6 Average Capacity . | . . . . . Most Carried 4 | . . . . 4 Average Carried . | . . . . . Final Capacity 6 | . . . . 6 Final Carried 4 | . . . . 4 Class Distribution -------------------- 84% | Builder 6% | Cogmind 6% | Swarmer 3% | Hauler Dominant Class ---------------- Builder | -10/Materials Builder | -9/Materials Builder | -8/Materials Builder | -8/Storage Resources | -11 -10 -9 -8 -8 ----------- Run | Scr Mat Mat Mat Sto Matter Collected 10 | . . . . 10 Remotely . | . . . . . Salvage Created 30 | . . . . 30 Parts 3 | . . . . 3 Haulers Intercepted . | . . . . . Recyclers Shooed . | . . . . . Parts Field Recycled . | . . . . . Retrieved Matter . | . . . . . Parts Self-Destructed . | . . . . . Prevented . | . . . . . Kills | -11 -10 -9 -8 -8 ------- Run | Scr Mat Mat Mat Sto Combat Hostiles Destroyed . | . . . . . Classes Destroyed 1 | . . . . 1 Worker 1 | . . . . 1 Best Kill Streak 1 | . . . . 1 Combat Bots Only . | . . . . . Max Kills in Single Turn 1 | . . . . 1 Gunslinging . | . . . . . Exploded . | . . . . . Melee . | . . . . . Uniques/NPCs Destroyed . | . . . . . Combat | -11 -10 -9 -8 -8 -------- Run | Scr Mat Mat Mat Sto Damage Taken 1133 | . . 366 125 642 Core 721 | . . 169 113 439 Absorbed by Shields . | . . . . . Core Remaining (%) 85 | 100 100 57 . . Volleys Fired 15 | . . 6 . 9 Largest 1 | . . 1 . 1 Hottest 20 | . . 20 . 20 Shots Fired 14 | . . 6 . 8 Gun 8 | . . . . 8 Cannon . | . . . . . Launcher . | . . . . . Special 6 | . . 6 . . Kinetic 8 | . . . . 8 Thermal 6 | . . 6 . . Explosive . | . . . . . Electromagnetic . | . . . . . Robot Hit Streak 7 | . . 2 . 7 Robot Miss Streak 1 | . . 1 . . Penetration Max . | . . . . . Secondary Targets . | . . . . . Shots Hit Robots 9 | . . 4 . 5 Core Hits 4 | . . 2 . 2 Critical Kills . | . . . . . Critical Parts Destroyed . | . . . . . Critical Strikes . | . . . . . Melee Attacks . | . . . . . Impact . | . . . . . Slashing . | . . . . . Piercing . | . . . . . Sneak Attacks . | . . . . . Combat Hostiles . | . . . . . Follow-up Attacks . | . . . . . Damage Inflicted 61 | . . 18 . 43 Guns 43 | . . . . 43 Cannons . | . . . . . Explosions . | . . . . . Melee . | . . . . . Ramming . | . . . . . Kinetic 43 | . . . . 43 Thermal 18 | . . 18 . . Explosive . | . . . . . Electromagnetic . | . . . . . Impact . | . . . . . Slashing . | . . . . . Piercing . | . . . . . Highest Corruption 4 | . . . . 4 Average Corruption 4 | . . . . 4 Corruption Purged . | . . . . . Corruption Blocked . | . . . . . Effects 3 | . . . . 3 Message Errors 1 | . . . . 1 Heat Flow Errors 1 | . . . . 1 Weapon Failures 1 | . . . . 1 Overload Shots . | . . . . . Overflow Damage . | . . . . . Projectiles . | . . . . . Explosions . | . . . . . Melee . | . . . . . Knockbacks . | . . . . . Impact . | . . . . . Kinetic . | . . . . . Secondary . | . . . . . Self-Inflicted Damage . | . . . . . Shots . | . . . . . Rammed . | . . . . . Targets Rammed . | . . . . . Kicked . | . . . . . Crushed . | . . . . . Highest Temperature 87 | . . 56 2 87 Average Temperature 31 | . . 25 2 36 Received Heat Transfer 324 | . . 63 27 234 Siege Activations . | . . . . . Robots Corrupted . | . . . . . Combat Hostiles . | . . . . . Parts Fried . | . . . . . Impact Corruptions . | . . . . . Robots Melted . | . . . . . Combat Hostiles . | . . . . . Parts Melted . | . . . . . Heat Transferred 125 | . . 125 . . Parts Sabotaged . | . . . . . Parts Stolen . | . . . . . Parts Stripped . | . . . . . Power Chain Reactions . | . . . . . Missiles Intercepted . | . . . . . Alert | -11 -10 -9 -8 -8 ------- Run | Scr Mat Mat Mat Sto Peak Influence 329 | . 37 117 329 192 Initial 118 | . . 13 42 118 Average 89 | . 9 46 130 153 Maximum Alert Level 1 | . . . 1 . Low Security (%) 89 | 100 100 100 66 100 Level 1 10 | . . . 33 . Level 2 . | . . . . . Level 3 . | . . . . . Level 4 . | . . . . . Level 5 . | . . . . . High Security . | . . . . . Max Security . | . . . . . Squads Dispatched 2 | . . 1 . 1 Investigation . | . . . . . Extermination . | . . . . . Reinforcement 2 | . . 1 . 1 Assault . | . . . . . Garrison . | . . . . . Intercept . | . . . . . Searches Triggered . | . . . . . Construction Impeded . | . . . . . Haulers Reinforced . | . . . . . Active Scanning Responses . | . . . . . Cargo Convoy Interrupts . | . . . . . Stealth | -11 -10 -9 -8 -8 --------- Run | Scr Mat Mat Mat Sto Distress Signals 4 | . . 1 3 . Communications Jammed . | . . . . . Distress Signals . | . . . . . Times Spotted 48 | . 1 13 11 23 Peak Tracking Total 11 | . 1 9 11 10 Tactical Retreats 5 | . . 2 3 . Traps | -11 -10 -9 -8 -8 ------- Run | Scr Mat Mat Mat Sto Traps Triggered 1 | . . . 1 . Indirectly . | . . . . . Trap Hack Attempts . | . . . . . Triggered . | . . . . . Disarmed 6 | . 6 . . . Reprogrammed . | . . . . . Reused . | . . . . . Traps Extracted . | . . . . . Installed . | . . . . . Triggered . | . . . . . Machines | -11 -10 -9 -8 -8 ---------- Run | Scr Mat Mat Mat Sto Machines Disabled . | . . . . . Max in Single Turn . | . . . . . Machines Sabotaged . | . . . . . Garrisons Compromised . | . . . . . Overloaded Fab Kills . | . . . . . Hacking | -11 -10 -9 -8 -8 --------- Run | Scr Mat Mat Mat Sto Machines Accessed 7 | . 5 1 1 . Terminals 6 | . 4 1 1 . Fabricators . | . . . . . Repair Stations . | . . . . . Recycling Units 1 | . 1 . . . Scanalyzers . | . . . . . Garrison Access . | . . . . . Total Hacks 15 | . 12 1 2 . Successful 11 | . 9 1 1 . Failed 4 | . 3 . 1 . Catastrophic 1 | . . . 1 . Database Lockouts . | . . . . . Manual . | . . . . . Terminals 13 | . 10 1 2 . Fabricators . | . . . . . Repair Stations . | . . . . . Recycling Units 2 | . 2 . . . Scanalyzers . | . . . . . Garrison Access . | . . . . . Terminal Hacks 10 | . 8 1 1 . Record 1 | . 1 . . . Prototype ID Bank 1 | . 1 . . . Emergency Access Points 1 | . 1 . . . Alert Level 1 | . 1 . . . Disarm Traps 1 | . 1 . . . Investigation Status 1 | . . 1 . . Hauler Manifests 1 | . 1 . . . Zone Layout 3 | . 2 . 1 . Fabricator Hacks . | . . . . . Repair Station Hacks . | . . . . . Recycling Unit Hacks 1 | . 1 . . . Report Inventory 1 | . 1 . . . Scanalyzer . | . . . . . Garrison Access Hacks . | . . . . . Unauthorized Hacks . | . . . . . Terminals . | . . . . . Fabricators . | . . . . . Repair Stations . | . . . . . Recycling Units . | . . . . . Scanalyzers . | . . . . . Garrison Access . | . . . . . Data Cores Recovered . | . . . . . Used . | . . . . . Hacking Detections 4 | . 3 . 1 . Full Trace Events 1 | . 1 . . . Feedback Events . | . . . . . Feedback Blocked . | . . . . . Robot Schematics Acquired . | . . . . . Robots Built . | . . . . . Authchips . | . . . . . Time . | . . . . . Total Robot Build Rating . | . . . . . Part Schematics Acquired . | . . . . . Parts Built . | . . . . . Authchips . | . . . . . Time . | . . . . . Total Part Build Rating . | . . . . . Parts Repaired . | . . . . . Time . | . . . . . Parts Recycled . | . . . . . Recycled Matter . | . . . . . Retrieved Matter . | . . . . . Retrieved Components . | . . . . . Parts Scanalyzed . | . . . . . Part Schematics Acquired . | . . . . . Parts Damaged . | . . . . . Bothacking | -11 -10 -9 -8 -8 ------------ Run | Scr Mat Mat Mat Sto Used RIF Installer . | . . . . . Robots Hacked 2 | . 1 . . 1 Non-combat 1 | . 1 . . . Combat 1 | . . . . 1 Robot Hacks Applied 3 | . 1 . . 2 map_walls 1 | . 1 . . . find_shortcuts 1 | . . . . 1 find_garrison 1 | . . . . 1 Relay Couplers Released . | . . . . . Fabnet Peak Effective % . | . . . . . Robots Rewired . | . . . . . Allies Hacked . | . . . . . Hacks Repelled . | . . . . . Allies | -11 -10 -9 -8 -8 -------- Run | Scr Mat Mat Mat Sto Total Allies . | . . . . . Largest Group . | . . . . . Highest-Rated Group . | . . . . . Highest-Rated Ally . | . . . . . Total Orders . | . . . . . Ally Attacks . | . . . . . Total Damage . | . . . . . Kills . | . . . . . Allies Corrupted . | . . . . . Allies Melted . | . . . . . Intel | -11 -10 -9 -8 -8 ------- Run | Scr Mat Mat Mat Sto Robot Analysis Total 3 | . 1 . . 2 Derelict Logs Recovered . | . . . . . Drone Launches . | . . . . . Drone Recoveries . | . . . . . Exploration | -11 -10 -9 -8 -8 ------------- Run | Scr Mat Mat Mat Sto Turns Passed 674 | 12 144 151 203 164 Spaces Moved 1019 | 24 200 208 332 255 Core 742 | 24 54 102 332 230 Treads 14 | . . . . 14 Legs . | . . . . . Wheels 252 | . 146 106 . . Hover . | . . . . . Flight 11 | . . . . 11 Fastest Speed 37 | 50 50 50 50 37 Average Speed 59 | 50 71 65 50 56 Slowest Speed 160 | 50 80 80 50 160 Overloaded Moves . | . . . . . Propulsion Burnouts . | . . . . . Robots Hopped . | . . . . . Cave-ins Triggered . | . . . . . Exploration Rate (%) 27 | 3 36 26 37 37 Regions Visited 4 Branch Regions 1 Pre-discovered Areas . | . . . . . Known Exits Taken . | . . . . . Unknown Exits Taken 4 | 1 1 1 1 . Scrap Searched . | . . . . . Spaces Dug . | . . . . . Terrain Destroyed . | . . . . . Melee . | . . . . . Projectile . | . . . . . AOE . | . . . . . Terrain Rammed . | . . . . . Walls Destroyed . | . . . . . Machines Disabled . | . . . . . Actions | -11 -10 -9 -8 -8 --------- Run | Scr Mat Mat Mat Sto Total 1073 | 23 199 215 368 268 Wait 43 | . . 2 37 4 Move 1015 | 23 199 207 331 255 Hop . | . . . . . Pick Up . | . . . . . Fast Attach . | . . . . . Attach . | . . . . . Detach . | . . . . . Swap . | . . . . . Drop . | . . . . . Fire 15 | . . 6 . 9 Melee . | . . . . . Ram . | . . . . . Kick . | . . . . . Crush . | . . . . . Escape Stasis . | . . . . . Rewire . | . . . . . Trap . | . . . . . Miscellaneous . | . . . . . Route ------- -11/Scrapyard -10/Materials (discovered 2 exits: *Mat / [*Min]) -9/Materials -8/Materials -8/Storage History --------- Turn | Location | Event 4 | -11/Scrapyard | Discovered new exit (range 15) 13 | -11/Scrapyard | Entered Materials 114 | -10/Materials | Discovered new exit (range 11) 126 | -10/Materials | Discovered new exit (range 13) 157 | -10/Materials | Entered another Materials area 288 | -9/Materials | Lost 5 parts (1p2n1u1w) 302 | -9/Materials | Discovered new exit (range 13) 308 | -9/Materials | Entered another Materials area 509 | -8/Materials | Discovered new exit (range 5) 511 | -8/Materials | Entered Storage 588 | -8/Storage | Core integrity fell below 50% 602 | -8/Storage | Core integrity fell below 20% 674 | -8/Storage | Lost 5 parts (1p2n1u1w) 675 | -8/Storage | Destroyed by Y-45 Defender with Heavy Assault Rifle Last Messages --------------- Flight Unit destroyed. System corrupted by crushing effect (+4). Critical hit (Burn: +37). Flight Unit destroyed. S-10 Pest destroyed. Lgt. Ion Engine destroyed. K-01 Serf cleans the Terminal. System corrupted: Lgt. Assault Rifle jammed. K-01 Serf destroyed. Acquired 10 matter. Lgt. Assault Rifle destroyed. Lost control of S-10 Pest. System corrupted: Heat flow error (+112). O-16 Technician: "IFF HANDSHAKE FAILED. SECURING TERMINAL." Took control of A-02 Transporter. Extracted analysis data for A-02 Transporter. [Achievement: Armchair Analyst] ALERT: Hostiles spotted, dispatching reinforcements to Terminal S004. ATUDZ1X#DVXUUJ BT G8MP:G Critical hit (Burn: +37). Map ----- +----------------------------------------------------+ | ???+ #??"" ""??????? a#???????????????????????? | | ???### #??? ???????? #???????????????????????? | | ?????# #??? ???????? #???????????????????????? | | ????## ##??#+######### #???????????????????????? | | ##### #### # #???????????????????????? | | T / # #???????????????????????? | | ##### #### """ """ # #???????????????????????? | | ????## ##??# """ """ # #???????????????????????? | | ?????# #???# """ """ # #???????????????????????? | | ?????# #???# ?+ #???????????????????????? | | ?????# #???# ?# #???????????????????????? | | ?????# #???# = ?# #???????????????????????? | | ?????# #???########### #???????????????????????? | | ?????#=#???# # #???????????????????????? | | ?????#*#???# # #???????????????????????? | | ?????#%#???# # #?????????????a?????????? | | ?????#!#???# /a #???????????????????????? | | ?????# #???# # #???????????????????????? | | ?????# #???# # #???????????????????????? | | ?###T#+##### # a?????a?????????????????? | | ?# * + # #???????????????????????? | | ?#!! ########### #???????????????????????? | | ?#%! #?????????# #???????????????????????? | | # !! #?????????# #???????????????????????? | | ############??????#### ########????????????????? | | ???????????? a ??????????? | | ???????????? g g Y ??????????? | | ??????????? ??????????? | | ???????????############+########### ???????????? | | ?????????????????????????????????????????????????? | | ?????????????????????????????????????????????????? | | ?????????????????????????????????????????????????? | | ?????????????????????????????????????????????????? | | ?????????????????????????????????????????????????? | | ?????????????????????????????????????????????????? | | ?????????????????????????????????????????????????? | | ?????????????????????????????????????????????????? | | ?????????????????????????????????????????????????? | | | | | | | | | | | | | | | | | | | | | | | | | +----------------------------------------------------+ Best States ------------- Heat Dissipation 25 Energy Generation 15 Energy Capacity 175 Matter Stores 94 Matter Capacity 100 Sight Range 16 Terrain Scan Range 14 Terrain Scan Density 85 Additional Mass Support 6 Resistance: KI 20 Resistance: TH 20 Resistance: EX 20 Resistance: EM 20 Resistance: I 20 Resistance: S 20 Resistance: P 20 Evasion (%) 50 Recoil Reduction 2 Offensive Hacking 10 Item Schematics ----------------- None Robot Schematics ------------------ None Fabricated ------------ Nothing Alien Tech Used ----------------- None Achievements -------------- Armchair Analyst Slippery One Challenges ------------ None Polymind | -11 -10 -9 -8 -8 ---------- Run | Scr Mat Mat Mat Sto Robots Controlled 3 | . 1 . . 2 Combat Hostiles 1 | . . . . 1 Allies . | . . . . . Classes Controlled 3 | . 1 . . 2 Average Host Suspicion 70 | . 51 74 72 77 Unsuspicious Activity 4 | . 2 . . 2 Returns to Shadow . | . . . . . Fuzzy Dispatches . | . . . . . Protomatter Created 10 | . . 5 . 5 Used 16 | . 5 . . 11 Decayed 5 | . . 5 . . Highest Spend 6 | . 5 . . 6 Game ------ Seed TractorBackupNukerbomber Manual? 0 Play Time 00:24:24 Cumulative 7.1 hours Start 2022.12.27 @ 15:07:32 End 2022.12.27 @ 15:48:05 Sessions 1 Manual Loads 0 Difficulty Adventurer Special Mode Winter2022/Polymind Game No. 19 Rogue 12 Adventurer 7 Explorer 0 Win Type - Total 0 Types 0/0/0/0/0/0/0/0/0 Lore% 2 Gallery% 9 Achievement% 6 Wizard Run 0 Options --------- ASCII 0 Keyboard 0 Movement Mouse Keybinds 0 Fullscreen 1 Font 18/SmallcapsGlow Map View 76x50 Tactical HUD 0 Map Filters NONE Filters NONE Steam 1 RUN: ae99528b-4309-4071-8514-ca7d77c572d3